fUST/lending_fUST_20240808
["ID","MTS","AMOUNT","RATE_DAILY","PERIOD"]
[334419003,1723073442286,-500.0,0.00028357,7]
[334419004,1723073442296,-500.0,0.00028357,7]
[334419005,1723073442305,-500.0,0.00028357,7]
[334419006,1723073442315,-500.0,0.00028357,7]
[334419007,1723073442323,-500.0,0.00028357,7]
[334419008,1723073442333,-500.0,0.00028357,7]
[334419009,1723073442342,-500.0,0.00028357,7]
[334419010,1723073442353,-500.0,0.00028357,7]
[334419011,1723073442363,-500.0,0.00028357,7]
[334419012,1723073442373,-500.0,0.00028357,7]
[334419013,1723073442383,-449.85558613,0.00028357,7]
[334419014,1723073442400,-500.0,0.00028357,7]
[334419015,1723073442410,-500.0,0.00028357,7]
[334419016,1723073442420,-500.0,0.00028357,7]
[334419017,1723073442431,-500.0,0.00028357,7]
[334419018,1723073442443,-500.0,0.00028357,7]
[334419019,1723073442453,-232.87711132,0.00028357,7]
[334419020,1723073442464,-500.0,0.00028357,7]
[334419021,1723073442473,-500.0,0.00028357,7]
[334419022,1723073442483,-500.0,0.00028357,7]
[334419023,1723073442494,-500.0,0.00028357,7]
[334419024,1723073442505,-500.0,0.00028357,7]
[334419025,1723073442516,-500.0,0.00028357,7]
[334419026,1723073442527,-500.0,0.00028357,7]
[334419027,1723073442540,-500.0,0.00028357,7]
[334419028,1723073442552,-500.0,0.00028357,7]
[334419029,1723073442561,-500.0,0.00028357,7]
[334419030,1723073442571,-500.0,0.00028357,7]
[334419031,1723073442582,-500.0,0.00028357,7]
[334419032,1723073442593,-1217.63,0.00028357,7]
[334419033,1723073442604,-500.0,0.00028357,7]
[334419034,1723073442614,-500.0,0.00028357,7]
[334419035,1723073442626,-500.0,0.00028357,7]
[334419036,1723073442637,-500.0,0.00028357,7]
[334419037,1723073442649,-501.47192917,0.00028357,7]
[334419038,1723073442662,-500.0,0.00028357,7]
[334419039,1723073442672,-500.0,0.00028357,7]
[334419040,1723073442683,-750.13,0.00028357,7]
[334419041,1723073442695,-500.0,0.00028357,7]
[334419042,1723073442707,-500.0,0.00028357,7]
[334419043,1723073442716,-551.20195376,0.00028357,7]
[334419044,1723073442728,-500.0,0.00028357,7]
[334419045,1723073442741,-500.0,0.00028357,7]
[334419046,1723073442753,-506.85,0.00028357,7]
[334419047,1723073442763,-500.0,0.00028357,7]
[334419048,1723073442773,-536.00377351,0.00028357,7]
[334419049,1723073442785,-500.0,0.00028357,7]
[334419050,1723073442795,-500.0,0.00028357,7]
[334419051,1723073442806,-500.0,0.00028357,7]
[334419053,1723073442815,-1104.96,0.00028357,7]
[334419055,1723073442825,-500.0,0.00028357,7]
[334419057,1723073442834,-500.0,0.00028357,7]
[334419059,1723073442844,-500.0,0.00028357,7]
[334419062,1723073442855,-500.0,0.00028357,7]
[334419065,1723073442865,-901.03,0.00028357,7]
[334419067,1723073442875,-500.0,0.00028357,7]
[334419069,1723073442886,-1228.38,0.00028357,7]
[334419071,1723073442898,-500.0,0.00028357,2]
[334419072,1723073442907,-466.75252687,0.00028357,2]
[334419073,1723073442917,-503.61,0.00028357,7]
[334419074,1723073442926,-500.0,0.00028357,7]
[334419075,1723073442936,-500.0,0.00028357,7]
[334419076,1723073442946,-500.0,0.00028357,7]
[334419077,1723073442957,-500.0,0.00028357,7]
[334419078,1723073442967,-500.0,0.00028357,7]
[334419079,1723073442976,-548.19204473,0.00028357,2]
[334419080,1723073442987,-500.0,0.00028357,7]
[334419081,1723073442996,-500.0,0.00028357,7]
[334419082,1723073443005,-540.01,0.00028357,7]
[334419083,1723073443015,-500.0,0.00028357,7]
[334419085,1723073443024,-535.55,0.00028357,7]
[334419087,1723073443039,-500.0,0.00028357,7]
[334419088,1723073443049,-500.0,0.00028357,7]
[334419090,1723073443059,-500.0,0.00028357,7]
[334419091,1723073443070,-500.0,0.00028357,7]
[334419092,1723073443080,-500.0,0.00028357,7]
[334419093,1723073443090,-500.0,0.00028357,7]
[334419094,1723073443100,-500.0,0.00028357,7]
[334419095,1723073443110,-500.0,0.00028357,7]
[334419096,1723073443121,-500.0,0.00028357,7]
[334419097,1723073443130,-500.0,0.00028357,7]
[334419098,1723073443140,-500.0,0.00028357,7]
[334419099,1723073443150,-500.0,0.00028357,7]
[334419100,1723073443159,-500.0,0.00028357,7]
[334419101,1723073443169,-644.5540553,0.00028357,7]
[334419102,1723073443179,-444.26446791,0.00028357,7]
[334419103,1723073443188,-501.43000007,0.00028357,7]
[334419104,1723073443198,-500.0,0.00028357,7]
[334419105,1723073443210,-500.0,0.00028357,7]
[334419106,1723073443220,-500.0,0.00028357,7]
[334419107,1723073443229,-347.03448498,0.00028357,7]
[334419108,1723073443239,-506.38312889,0.00028357,7]
[334419109,1723073443250,-500.0,0.00028357,7]
[334419110,1723073443262,-500.0,0.00028357,7]
[334419111,1723073443272,-500.0,0.00028357,7]
[334419112,1723073443284,-500.0,0.00028357,7]
[334419113,1723073443294,-500.0,0.00028357,7]
[334419114,1723073443303,-500.274167,0.00028357,7]
[334419115,1723073443312,-500.0,0.00028357,7]
[334419116,1723073443323,-500.0,0.00028357,7]
[334419117,1723073443334,-500.62765626,0.00028357,7]
[334419118,1723073443343,-500.0,0.00028357,7]
[334419119,1723073443353,-500.0,0.00028357,7]
[334419120,1723073443363,-500.0,0.00028357,7]
[334419121,1723073443374,-500.0,0.00028357,7]
[334419122,1723073443385,-500.0,0.00028357,7]
[334419123,1723073443396,-501.52361244,0.00028357,7]
[334419124,1723073443407,-500.0,0.00028357,7]
[334419125,1723073443418,-500.0,0.00028357,7]
[334419126,1723073443430,-500.0,0.00028357,7]
[334419127,1723073443441,-1018.81,0.00028357,7]
[334419128,1723073443452,-500.0,0.00028357,7]
[334419130,1723073443463,-500.0,0.00028357,7]
[334419131,1723073443472,-569.97,0.00028357,7]
[334419132,1723073443482,-500.0,0.00028357,7]
[334419133,1723073443493,-500.0,0.00028357,7]
[334419134,1723073443502,-500.0,0.00028357,7]
[334419135,1723073443511,-500.0,0.00028357,7]
[334419136,1723073443520,-500.0,0.00028357,7]
[334419137,1723073443530,-500.0,0.00028357,7]
[334419138,1723073443539,-500.0,0.00028357,7]
[334419139,1723073443549,-500.0,0.00028357,7]
[334419140,1723073443559,-151.0,0.00028357,7]
[334419141,1723073443569,-500.0,0.00028357,7]
[334419142,1723073443579,-500.0,0.00028357,7]
[334419143,1723073443591,-500.0,0.00028357,7]
[334419144,1723073443601,-505.33547354,0.00028357,7]
[334419145,1723073443612,-500.0,0.00028357,7]
[334419146,1723073443621,-166.17198519,0.00028357,7]
[334419147,1723073443630,-500.0,0.00028357,7]
[334419148,1723073443641,-2000.0,0.00028358,2]
[334419149,1723073443651,-150.112233,0.000284,5]
[334419150,1723073443664,-8595.29941383,0.00028429,3]
[334419151,1723073443674,-500.0,0.00028438,7]
[334419152,1723073443684,-500.0,0.00028438,7]
[334419153,1723073443693,-500.0,0.00028439,7]
[334419154,1723073443703,-500.0,0.00028439,7]
[334419155,1723073443714,-500.0,0.00028439,7]
[334419156,1723073443723,-1163.5,0.00028439,7]
[334419157,1723073443734,-500.0,0.00028439,7]
[334419158,1723073443745,-1108.37,0.00028439,7]
[334419159,1723073443754,-500.0,0.00028439,7]
[334419160,1723073443763,-500.0,0.00028439,7]
[334419161,1723073443773,-500.0,0.00028439,7]
[334419162,1723073443782,-500.0,0.00028439,7]
[334419163,1723073443792,-570.13,0.00028439,7]
[334419164,1723073443801,-1853.1,0.00028439,7]
[334419165,1723073443811,-500.0,0.00028439,7]
[334419166,1723073443820,-500.0,0.00028439,7]
[334419167,1723073443831,-850.17,0.00028439,7]
[334419168,1723073443840,-500.0,0.00028439,7]
[334419169,1723073443851,-500.0,0.00028439,7]
[334419170,1723073443861,-1566.03,0.00028439,7]
[334419171,1723073443871,-1785.8,0.00028439,7]
[334419172,1723073443880,-500.0,0.00028439,7]
[334419173,1723073443889,-22.38308102,0.00028439,2]
[334419197,1723073446900,-906.23,0.00028329,3]
[334419198,1723073446910,-73.75,0.00028338,7]
[334419225,1723074127318,162.704072,0.00014247,2]
[334419227,1723074334207,189.93381828,0.00014247,2]
[334419228,1723074552150,-193.15893978,0.00019451,2]
[334419297,1723074638570,-250.15678194,0.00019256,2]
[334419298,1723074638581,-881.47696693,0.0002217,2]
[334419299,1723074638591,-170.589378,0.00026114,2]
[334419300,1723074638600,-216.466456,0.00026512,2]
[334419301,1723074638610,-402.49527553,0.00026575,2]
[334419302,1723074638620,-168.870157,0.00026589,2]
[334419303,1723074638629,-588.8467108,0.00027739,2]
[334419304,1723074638638,-260.04198561,0.00027739,2]
[334419320,1723074641813,-45.95801439,0.00027739,2]
[334419321,1723074641823,-216.466456,0.00027894,2]
[334419322,1723074641833,-300.0,0.00027999,2]
[334419323,1723074641842,-5000.763452,0.00028,2]
[334419324,1723074641852,-954.9135911,0.00028234,2]
[334419325,1723074641862,-394.88,0.00028325,3]
[334419326,1723074641871,-689.37,0.00028325,3]
[334419327,1723074641882,-574.48,0.00028325,3]
[334419328,1723074641893,-5157.17964829,0.00028325,3]
[334419329,1723074641903,-10314.3592966,0.00028326,3]
[334419330,1723074641913,-5157.17964829,0.00028327,3]
[334419331,1723074641923,-935.19,0.00028327,7]
[334419332,1723074641933,-735.96,0.00028327,7]
[334419333,1723074641943,-15471.5389449,0.00028328,3]
[334419334,1723074641954,-500.0,0.00028333,2]
[334419335,1723074641963,-500.0,0.00028333,2]
[334419336,1723074641973,-334.53693951,0.00028333,2]
[334419337,1723074641983,-737.75,0.00028334,7]
[334419338,1723074641997,-1388.6,0.00028334,7]
[334419339,1723074642007,-1621.92100327,0.00028334,7]
[334419413,1723075095851,162.704072,0.00014247,2]
[334419414,1723075243060,157.33891375,0.00014247,2]
[334419418,1723075772153,-154.96601994,0.00016038,2]
[334419467,1723075838659,-1013.2657141,0.00017269,2]
[334419469,1723075838670,-154.77557542,0.00017269,2]
[334419470,1723075838680,-166.0,0.00023,2]
[334419472,1723075838691,-166.0,0.00024164,2]
[334419473,1723075838701,-169.0,0.00025373,2]
[334419474,1723075838711,-402.49527553,0.00026559,2]
[334419475,1723075838721,-80.99399695,0.00026822,2]
[334419476,1723075838737,-89.59538105,0.00026822,2]
[334419477,1723075838747,-348.7246361,0.00027578,2]
[334419478,1723075838757,-282.52041379,0.00027578,2]
[334419479,1723075838774,-381.67389971,0.00027578,2]
[334419480,1723075838784,-166.0,0.0002791,2]
[334419481,1723075838795,-226.0,0.00028161,2]
[334419482,1723075838804,-522.31,0.00028162,120]
[334419483,1723075838815,-500.0,0.00028162,120]
[334419484,1723075838826,-500.0,0.00028162,120]
[334419485,1723075838837,-200.0,0.00028236,2]
[334419486,1723075838847,-151.0,0.00028264,5]
[334419487,1723075838858,-151.0,0.00028264,5]
[334419488,1723075838868,-478.73,0.00028314,3]
[334419489,1723075838877,-40.88335346,0.00028314,3]
[334419490,1723075838891,-358.05664654,0.00028314,3]
[334419491,1723075838903,-3055.18163042,0.00028314,3]
[334419506,1723075842159,-189.99120087,0.00019999,2]
[334419508,1723075842169,-296.98514097,0.00028314,3]
[334419509,1723075842180,-13408.6670856,0.00028315,3]
[334419510,1723075842190,-3352.16677139,0.00028316,3]
[334419511,1723075842200,-3352.16677139,0.00028317,3]
[334419512,1723075842210,-9787.06988503,0.00028323,21]
[334419556,1723077031713,-165.13442458,0.0002028,2]
[334419557,1723077031723,-202.49339279,0.00021916,3]
[334419558,1723077031732,-251.64143621,0.00025,2]
[334419572,1723077037886,-2304.86043199,0.00025,2]
[334419574,1723077037896,-180.3265191,0.00026356,2]
[334419576,1723077037907,-402.49527553,0.00026569,2]
[334419578,1723077037916,-151.0,0.00026748,4]
[334419580,1723077037928,-166.0,0.00027,2]
[334419581,1723077037938,-151.0,0.00027507,4]
[334419582,1723077037948,-594.54586958,0.00027512,2]
[334419583,1723077037957,-2508.52923973,0.00028087,2]
[334419584,1723077037967,-971.96561955,0.00028114,2]
[334419585,1723077037977,-249.67101457,0.00028121,2]
[334419586,1723077037987,-2328.43663602,0.00028122,2]
[334419587,1723077037997,-249.67101457,0.00028122,2]
[334419588,1723077038006,-249.67101457,0.00028123,2]
[334419589,1723077038016,-2328.43663599,0.00028147,2]
[334419590,1723077038025,-2328.43663599,0.00028172,2]
[334419591,1723077038034,-2328.43663599,0.00028196,2]
[334419592,1723077038044,-1324.0,0.00028211,3]
[334419593,1723077038053,-1103.34,0.00028211,3]
[334419594,1723077038062,-8182.13576008,0.00028212,3]
[334419595,1723077038072,-18800.33430659,0.00028212,21]
[334419596,1723077038081,-977.47,0.00028213,7]
[334419597,1723077038091,-500.0,0.00028213,7]
[334419598,1723077038101,-500.0,0.00028213,7]
[334419599,1723077038111,-726.12,0.00028213,7]
[334419600,1723077038120,-500.0,0.00028213,7]
[334419601,1723077038130,-500.0,0.00028213,7]
[334419602,1723077038139,-500.0,0.00028213,7]
[334419603,1723077038148,-16364.2715202,0.00028213,3]
[334419604,1723077038157,-8182.13576008,0.00028214,3]
[334419605,1723077038166,-500.0,0.0002822,2]
[334419606,1723077038178,-231.759829,0.0002822,2]
[334419608,1723077038188,-155.36182597,0.0002822,2]
[334419610,1723077038198,-500.0,0.0002822,2]
[334419611,1723077038207,-512.90643985,0.0002822,2]
[334419612,1723077038216,-500.0,0.0002822,2]
[334419613,1723077038225,-37069.42498438,0.00028221,21]
[334419614,1723077038234,-771.1,0.00028221,7]
[334419615,1723077038243,-2328.43663599,0.00028221,2]
[334419616,1723077038253,-4533.76,0.00028221,7]
[334419617,1723077038263,-500.0,0.00028221,7]
[334419618,1723077038272,-9803.79,0.00028221,7]
[334419619,1723077038281,-1451.38,0.00028221,7]
[334419620,1723077038291,-500.0,0.00028221,7]
[334419621,1723077038301,-5791.61,0.00028221,7]
[334419622,1723077038311,-2499.21,0.00028221,7]
[334419623,1723077038320,-500.0,0.00028221,7]
[334419624,1723077038329,-608.43,0.00028221,7]
[334419625,1723077038338,-1310.1,0.00028221,7]
[334419626,1723077038348,-5501.84,0.00028221,7]
[334419627,1723077038357,-1769.34,0.00028221,7]
[334419628,1723077038366,-1497.96,0.00028221,7]
[334419629,1723077038376,-1305.86,0.00028221,7]
[334419630,1723077038385,-1765.26057933,0.00028221,2]
[334419631,1723077038394,-151.0,0.00028221,7]
[334419632,1723077038404,-606.21,0.00028221,7]
[334419633,1723077038413,-3641.42,0.00028221,7]
[334419634,1723077038424,-824.11,0.00028221,7]
[334419635,1723077038433,-88888.0,0.00028221,3]
[334419636,1723077038443,-500.0,0.00028222,7]
[334419637,1723077038452,-500.0,0.00028222,7]
[334419638,1723077038462,-3093.29,0.00028222,7]
[334419639,1723077038471,-2206.43,0.00028222,7]
[334419640,1723077038480,-500.0,0.00028222,7]
[334419641,1723077038490,-2266.93,0.00028222,7]
[334419642,1723077038499,-500.0,0.00028222,7]
[334419643,1723077038511,-2574.22,0.00028222,7]
[334419644,1723077038521,-2816.7,0.00028222,7]
[334419645,1723077038530,-3039.24,0.00028222,7]
[334419646,1723077038539,-500.0,0.00028222,7]
[334419647,1723077038549,-500.0,0.00028222,7]
[334419648,1723077038558,-500.0,0.00028222,7]
[334419649,1723077038568,-1020.65,0.00028222,7]
[334419650,1723077038578,-14553.41,0.00028222,7]
[334419651,1723077038588,-500.0,0.00028222,7]
[334419652,1723077038598,-500.0,0.00028222,7]
[334419653,1723077038607,-3932.47,0.00028222,7]
[334419654,1723077038617,-1277.52,0.00028222,7]
[334419655,1723077038627,-2569.26,0.00028222,7]
[334419656,1723077038637,-500.0,0.00028222,7]
[334419657,1723077038647,-779.31,0.00028222,7]
[334419658,1723077038656,-2023.96,0.00028222,7]
[334419659,1723077038666,-1283.41,0.00028222,7]
[334419660,1723077038682,-818.98,0.00028222,7]
[334419661,1723077038692,-500.0,0.00028222,7]
[334419662,1723077038703,-1310.56,0.00028222,7]
[334419663,1723077038713,-5692.33,0.00028222,7]
[334419664,1723077038723,-967.62,0.00028222,7]
[334419665,1723077038733,-3135.86,0.00028222,7]
[334419666,1723077038743,-500.0,0.00028222,7]
[334419667,1723077038755,-500.0,0.00028222,7]
[334419668,1723077038767,-1182.71,0.00028222,7]
[334419669,1723077038777,-151.0,0.00028222,7]
[334419670,1723077038786,-604.74,0.00028222,7]
[334419671,1723077038797,-1429.98,0.00028222,7]
[334419672,1723077038807,-648.9,0.00028223,7]
[334419673,1723077038817,-2000.0,0.00028223,14]
[334419674,1723077038828,-2000.0,0.00028223,15]
[334419675,1723077038837,-2000.0,0.00028223,16]
[334419676,1723077038847,-2000.0,0.00028223,17]
[334419677,1723077038857,-2000.0,0.00028223,18]
[334419678,1723077038866,-1159.76033127,0.00028223,19]
[334419679,1723077038876,-500.0,0.00028223,7]
[334419680,1723077038885,-1271.52,0.00028223,7]
[334419681,1723077038895,-500.0,0.00028223,7]
[334419682,1723077038904,-500.0,0.00028223,7]
[334419683,1723077038913,-500.0,0.00028223,7]
[334419684,1723077038927,-500.0,0.00028223,7]
[334419685,1723077038937,-500.0,0.00028223,7]
[334419686,1723077038946,-644.08717906,0.00028223,7]
[334419687,1723077038956,-500.0,0.00028223,7]
[334419688,1723077038965,-500.0,0.00028223,7]
[334419689,1723077038975,-1152.76,0.00028223,7]
[334419690,1723077038984,-1445.37,0.00028223,7]
[334419691,1723077038994,-500.0,0.00028223,7]
[334419692,1723077039003,-500.45600032,0.00028223,7]
[334419693,1723077039012,-771.9,0.00028223,7]
[334419694,1723077039022,-500.0,0.00028223,7]
[334419695,1723077039031,-898.42,0.00028223,7]
[334419696,1723077039040,-500.0,0.00028223,7]
[334419697,1723077039049,-524.44,0.00028223,7]
[334419698,1723077039059,-520.96738811,0.00028223,7]
[334419699,1723077039068,-500.0,0.00028223,7]
[334419700,1723077039078,-500.0,0.00028223,7]
[334419701,1723077039087,-500.97142327,0.00028223,7]
[334419702,1723077039096,-500.0,0.00028223,7]
[334419703,1723077039106,-500.0,0.00028223,7]
[334419704,1723077039115,-500.55305366,0.00028223,7]
[334419705,1723077039124,-1152.83,0.00028223,7]
[334419706,1723077039133,-500.0,0.00028223,7]
[334419707,1723077039143,-354.62789311,0.00028223,7]
[334419708,1723077039152,-667.83,0.00028223,7]
[334419709,1723077039162,-500.0,0.00028223,7]
[334419710,1723077039172,-500.0,0.00028223,7]
[334419711,1723077039188,-500.0,0.00028223,7]
[334419712,1723077039198,-522.25,0.00028223,7]
[334419713,1723077039208,-500.0,0.00028223,7]
[334419714,1723077039217,-1210.55,0.00028223,7]
[334419715,1723077039227,-504.16,0.00028223,7]
[334419716,1723077039237,-500.0,0.00028223,7]
[334419717,1723077039246,-1896.27,0.00028223,7]
[334419718,1723077039256,-791.73,0.00028223,7]
[334419719,1723077039265,-500.0,0.00028223,7]
[334419720,1723077039274,-500.0,0.00028223,7]
[334419721,1723077039284,-500.0,0.00028223,7]
[334419722,1723077039293,-500.0,0.00028223,7]
[334419723,1723077039303,-4156.1,0.00028223,7]
[334419724,1723077039312,-1198.47,0.00028223,7]
[334419725,1723077039321,-474.55475423,0.00028223,7]
[334419726,1723077039331,-151.0,0.00028223,7]
[334419727,1723077039341,-151.0,0.00028223,7]
[334419728,1723077039350,-151.0,0.00028223,7]
[334419729,1723077039360,-500.0,0.00028223,7]
[334419730,1723077039369,-500.0,0.00028223,7]
[334419731,1723077039379,-500.0,0.00028223,7]
[334419732,1723077039389,-151.0,0.00028223,7]
[334419733,1723077039398,-151.0,0.00028223,7]
[334419734,1723077039408,-151.0,0.00028223,7]
[334419735,1723077039418,-151.0,0.00028223,7]
[334419736,1723077039433,-209.195549,0.00028223,7]
[334419738,1723077039443,-500.0,0.00028223,7]
[334419740,1723077039453,-500.0,0.00028223,7]
[334419741,1723077039462,-500.0,0.00028223,7]
[334419743,1723077039471,-500.0,0.00028223,7]
[334419745,1723077039481,-670.59,0.00028223,7]
[334419747,1723077039493,-754.52,0.00028223,7]
[334419750,1723077039505,-842.14,0.00028223,7]
[334419752,1723077039520,-1176.99,0.00028223,7]
[334419754,1723077039533,-2518.71,0.00028223,7]
[334419756,1723077039546,-1098.25,0.00028223,7]
[334419758,1723077039558,-687.56,0.00028223,7]
[334419761,1723077039569,-1137.51,0.00028223,7]
[334419763,1723077039579,-500.0,0.00028223,7]
[334419765,1723077039591,-676.076068,0.00028223,7]
[334419766,1723077039603,-676.076068,0.00028223,7]
[334419767,1723077039614,-1139.72,0.00028223,7]
[334419768,1723077039625,-676.076068,0.00028223,7]
[334419769,1723077039636,-676.076068,0.00028223,7]
[334419770,1723077039648,-8787.58,0.00028223,7]
[334419771,1723077039660,-1355.56,0.00028223,7]
[334419772,1723077039671,-1956.06,0.00028223,7]
[334419773,1723077039686,-3217.74,0.00028223,7]
[334419774,1723077039698,-500.0,0.00028223,7]
[334419775,1723077039710,-500.0,0.00028223,7]
[334419776,1723077039722,-2316.97,0.00028223,7]
[334419777,1723077039734,-839.5,0.00028223,7]
[334419778,1723077039746,-500.0,0.00028223,7]
[334419779,1723077039758,-500.0,0.00028223,7]
[334419780,1723077039771,-510.32,0.00028223,7]
[334419781,1723077039782,-500.0,0.00028223,7]
[334419782,1723077039794,-969.0,0.00028223,7]
[334419783,1723077039806,-2000.0,0.00028223,2]
[334419784,1723077039818,-500.0,0.00028224,7]
[334419785,1723077039830,-500.0,0.00028224,7]
[334419786,1723077039842,-503.75,0.00028224,7]
[334419787,1723077039853,-500.0,0.00028224,7]
[334419788,1723077039863,-500.0,0.00028224,7]
[334419789,1723077039873,-500.0,0.00028224,7]
[334419790,1723077039884,-500.0,0.00028224,7]
[334419791,1723077039896,-500.0,0.00028224,7]
[334419792,1723077039907,-500.0,0.00028224,7]
[334419793,1723077039918,-500.0,0.00028224,7]
[334419794,1723077039931,-751.18,0.00028224,7]
[334419795,1723077039943,-540.22347395,0.00028224,7]
[334419796,1723077039955,-500.0,0.00028224,7]
[334419797,1723077039968,-845.83,0.00028224,7]
[334419798,1723077039979,-1579.11,0.00028224,7]
[334419799,1723077039991,-500.0,0.00028224,7]
[334419800,1723077040004,-500.0,0.00028224,7]
[334419801,1723077040016,-538.74969551,0.00028224,7]
[334419802,1723077040028,-646.74,0.00028224,7]
[334419803,1723077040040,-553.87,0.00028224,7]
[334419804,1723077040052,-1579.43,0.00028224,7]
[334419805,1723077040062,-500.0,0.00028224,7]
[334419806,1723077040073,-500.0,0.00028224,7]
[334419807,1723077040084,-500.0,0.00028224,7]
[334419808,1723077040094,-500.0,0.00028224,7]
[334419809,1723077040106,-580.2,0.00028224,7]
[334419810,1723077040117,-500.0,0.00028224,7]
[334419811,1723077040129,-500.0,0.00028224,7]
[334419812,1723077040142,-500.0,0.00028224,7]
[334419813,1723077040154,-500.0,0.00028224,7]
[334419814,1723077040166,-1382.47,0.00028224,7]
[334419815,1723077040178,-500.0,0.00028224,7]
[334419816,1723077040189,-500.0,0.00028224,7]
[334419817,1723077040202,-500.0,0.00028224,7]
[334419818,1723077040213,-633.2470924,0.00028224,7]
[334419819,1723077040224,-500.0,0.00028224,7]
[334419820,1723077040236,-500.0,0.00028224,7]
[334419821,1723077040249,-500.0,0.00028224,7]
[334419822,1723077040260,-166.92801832,0.00028224,7]
[334419824,1723077040271,-544.64,0.00028224,7]
[334419826,1723077040282,-210.311446,0.00028224,7]
[334419828,1723077040293,-500.0,0.00028224,7]
[334419829,1723077040304,-151.0,0.00028224,7]
[334419830,1723077040315,-500.0,0.00028224,7]
[334419831,1723077040327,-500.0,0.00028224,7]
[334419832,1723077040338,-676.076068,0.00028224,7]
[334419833,1723077040349,-676.076068,0.00028224,7]
[334419834,1723077040360,-676.076068,0.00028224,7]
[334419835,1723077040370,-676.076068,0.00028224,7]
[334419836,1723077040382,-500.0,0.00028224,7]
[334419837,1723077040392,-500.0,0.00028224,7]
[334419838,1723077040403,-279.04720732,0.00028224,7]
[334419839,1723077040414,-500.0,0.00028224,7]
[334419840,1723077040428,-500.0,0.00028224,7]
[334419841,1723077040439,-500.0,0.00028224,7]
[334419842,1723077040453,-500.0,0.00028224,7]
[334419843,1723077040464,-500.0,0.00028224,7]
[334419844,1723077040475,-500.0,0.00028224,7]
[334419845,1723077040486,-500.0,0.00028224,7]
[334419846,1723077040497,-500.0,0.00028224,7]
[334419847,1723077040509,-500.0,0.00028224,7]
[334419848,1723077040520,-200.0,0.00028227,2]
[334419849,1723077040531,-513.21,0.0002824,2]
[334419850,1723077040542,-151.0,0.00028265,5]
[334419851,1723077040553,-151.0,0.00028311,7]
[334419852,1723077040564,-24546.4072802,0.00028311,3]
[334419853,1723077040574,-676.076068,0.00028313,7]
[334419854,1723077040585,-676.076068,0.00028313,7]
[334419855,1723077040596,-8182.13576008,0.00028313,3]
[334419856,1723077040607,-16364.2715202,0.00028315,3]
[334419857,1723077040617,-151.0,0.00028315,7]
[334419858,1723077040628,-151.0,0.00028315,7]
[334419859,1723077040639,-500.0,0.0002832,7]
[334419860,1723077040650,-500.0,0.0002832,7]
[334419861,1723077040661,-500.0,0.0002832,7]
[334419862,1723077040673,-500.0,0.0002832,7]
[334419863,1723077040687,-500.0,0.0002832,7]
[334419864,1723077040698,-500.0,0.0002832,7]
[334419865,1723077040709,-631.24154233,0.00028321,7]
[334419866,1723077040721,-263.58153932,0.00028321,7]
[334419868,1723077040732,-500.0,0.00028321,7]
[334419870,1723077040743,-500.0,0.00028321,7]
[334419872,1723077040755,-500.0,0.00028321,7]
[334419874,1723077040768,-500.0,0.00028321,7]
[334419876,1723077040779,-500.0,0.00028321,7]